bitfinex/quotes_ETHUSD_20241124
["timestamp","ask_amount","ask_price","bid_price","bid_amount"]
[1732437981991,3.06796628,3404.0,3402.8,0.7576]
[1732437981992,3.0,3403.9,3402.8,0.7576]
[1732437982279,0.27126133,3403.8,3402.8,0.7576]
[1732437982487,0.8084,3403.5,3402.8,0.7576]
[1732437982643,0.27126133,3403.4,3402.8,0.7576]
[1732437982839,0.11218124,3403.3,3402.8,0.7576]
[1732437983340,0.27127306,3403.2,3402.8,0.7576]
[1732437983563,0.11218124,3403.2,3402.8,0.7576]
[1732437983879,5.25956628,3403.6,3402.8,0.7576]
[1732437984087,0.38348427,3403.5,3402.8,0.7576]
[1732437984266,0.27130303,3403.4,3402.8,0.7576]
[1732437984643,0.11218124,3403.3,3402.8,0.7576]
[1732437984851,3.0,3403.1,3402.4,0.7865]
[1732437985221,0.38343858,3403.0,3402.4,0.7865]
[1732437985540,0.27130303,3402.9,3402.4,0.7865]
[1732437986283,0.38343858,3402.8,3402.4,0.7865]
[1732437986482,0.27130303,3402.7,3402.4,0.7865]
[1732437986783,0.27130303,3402.7,3401.3,0.7865]
[1732437986784,0.8084,3402.6,3401.3,0.7865]
[1732437987002,3.27130303,3402.5,3401.3,0.7865]
[1732437987282,0.27130303,3402.4,3401.3,0.7865]
[1732437987441,0.11199162,3402.3,3401.3,0.7865]
[1732437987642,0.27130303,3402.2,3401.3,0.7865]
[1732437987877,0.27130303,3402.1,3401.3,0.7865]
[1732437988188,0.38328368,3402.0,3401.3,0.7865]
[1732437988483,0.11199162,3402.0,3401.3,0.7865]
[1732437988638,3.0,3402.5,3401.3,0.7865]
[1732437988835,0.38314999,3402.4,3401.3,0.7865]
[1732437989041,0.27115837,3402.3,3401.3,0.7865]
[1732437989236,0.27115837,3402.2,3401.3,0.7865]
[1732437989553,0.38314999,3402.1,3401.3,0.7865]
[1732437989888,0.27115837,3402.0,3401.3,0.7865]
[1732437990038,0.11148207,3401.9,3401.3,0.7865]
[1732437990243,3.0,3402.5,3401.3,0.7865]
[1732437990437,0.38242279,3402.4,3401.3,0.7865]
[1732437990667,0.27094072,3402.3,3401.3,0.7865]
[1732437991178,0.11148207,3402.2,3401.3,0.7865]
[1732437991485,0.27094072,3402.1,3401.3,0.7865]
[1732437991653,0.38242279,3402.0,3401.3,0.7865]
[1732437991858,0.11148207,3402.0,3401.3,0.7865]
[1732437992187,3.0,3402.5,3401.3,0.7865]
[1732437992389,0.11148207,3401.9,3401.3,0.7865]
[1732437992546,3.0,3402.5,3401.3,0.7865]
[1732437992808,0.11144321,3401.8,3401.3,0.7865]
[1732437993053,0.11144321,3401.7,3401.3,0.7865]
[1732437993253,3.0,3402.5,3401.3,0.7865]
[1732437993454,0.27068087,3402.4,3401.3,0.7865]
[1732437993654,0.27068087,3402.3,3401.3,0.7865]
[1732437993962,0.27068087,3402.2,3401.3,0.7865]
[1732437994159,0.27068087,3402.1,3401.3,0.7865]
[1732437994660,0.27069665,3402.4,3401.3,0.7865]
[1732437994869,0.27072233,3402.3,3401.3,0.7865]
[1732437995240,0.38216554,3402.2,3401.3,0.7865]
[1732437995564,0.27072233,3402.1,3401.3,0.7865]
[1732437995896,3.27072233,3402.0,3401.3,0.7865]
[1732437996193,0.11144321,3401.9,3401.3,0.7865]
[1732437996550,2.25956628,3402.1,3401.3,0.7865]
[1732437996785,0.11144321,3401.8,3401.3,0.7865]
[1732437996946,3.8084,3402.0,3401.3,0.7865]
[1732437997146,0.11144321,3401.7,3401.3,0.7865]
[1732437997361,3.8084,3402.0,3401.3,0.7865]
[1732437997563,0.11144321,3401.6,3401.3,0.7865]
[1732437997773,3.8084,3402.0,3401.3,0.7865]
[1732437997991,0.11144321,3401.5,3401.3,0.7865]
[1732437998202,3.8084,3402.0,3401.3,0.7865]
[1732437998398,0.11144321,3401.4,3401.3,0.7865]
[1732437998896,3.8084,3402.0,3401.3,0.7865]
[1732437999096,0.11144321,3401.9,3401.3,0.7865]
[1732438000804,0.9930555,3401.7,3401.3,0.7865]
[1732438001352,0.11144321,3401.6,3401.3,0.7865]
[1732438008265,0.9930555,3402.5,3401.5,0.8083]
[1732438008473,0.9930555,3402.5,3401.1,0.8083]
[1732438008474,0.38224531,3402.4,3401.1,0.8083]
[1732438008701,0.11134719,3402.4,3401.3,0.8083]
[1732438008896,0.9930555,3402.5,3401.3,0.8083]
[1732438009111,0.9930555,3402.5,3401.4,0.0293946]
[1732438009319,0.40812102,3403.7,3401.4,0.8376946]
[1732438009320,0.11134719,3402.4,3401.4,0.8376946]
[1732438009515,0.9930555,3402.7,3401.4,0.8376946]
[1732438009700,0.38241641,3402.6,3401.4,0.8376946]
[1732438010014,0.11134719,3402.6,3401.4,0.8376946]
[1732438010227,0.11134719,3402.6,3401.6,0.8083]
[1732438010543,0.9930555,3402.6,3401.6,0.8083]
[1732438010816,0.11152091,3402.5,3401.6,0.8083]
[1732438011016,0.11152091,3402.5,3401.7,0.8083]
[1732438011369,0.9930555,3402.4,3401.7,0.8083]
[1732438011582,0.9930555,3402.2,3401.7,0.8083]
[1732438012046,0.11152777,3402.1,3401.7,0.8083]
[1732438014884,2.25860537,3402.4,3401.7,0.8083]
[1732438015084,0.11152777,3402.3,3401.7,0.8083]
[1732438015313,0.27159294,3402.2,3401.7,0.8083]
[1732438015545,0.27159294,3402.1,3401.7,0.8083]
[1732438015770,0.38312071,3402.0,3401.7,0.8083]
[1732438015920,0.11152777,3402.0,3401.7,0.8083]
[1732438016121,2.25860537,3402.4,3401.7,0.8083]
[1732438016320,0.38318482,3402.3,3401.7,0.8083]
[1732438016567,0.27165705,3402.2,3401.7,0.8083]
[1732438017066,0.11161694,3402.1,3401.7,0.8083]
[1732438017438,0.27157979,3402.0,3401.7,0.8083]
[1732438017770,0.11161694,3401.9,3401.7,0.8083]
[1732438018127,2.25860537,3402.4,3401.7,0.8083]
[1732438018356,0.38319408,3402.3,3401.7,0.8083]
[1732438018561,0.27157714,3402.2,3401.7,0.8083]
[1732438018766,0.27157714,3402.1,3401.7,0.8083]
[1732438018964,0.27157714,3402.0,3401.7,0.8083]
[1732438019166,0.11161694,3402.0,3401.7,0.8083]
[1732438019622,2.25860537,3402.4,3401.7,0.8083]
[1732438019818,0.11161694,3401.9,3401.7,0.8083]
[1732438020019,2.25860537,3402.4,3401.7,0.8083]
[1732438020259,0.11161694,3401.8,3401.7,0.8083]
[1732438020469,2.25860537,3402.4,3401.7,0.8083]
[1732438020652,0.11161694,3401.8,3401.7,0.8083]
[1732438020859,2.25860537,3402.4,3401.7,0.8083]
[1732438021035,0.11161694,3401.8,3401.7,0.8083]
[1732438021245,2.25860537,3402.4,3401.7,0.8083]
[1732438021437,0.11161694,3401.8,3401.7,0.8083]
[1732438021638,2.25860537,3402.4,3401.7,0.8083]
[1732438021843,0.11161694,3401.8,3401.7,0.8083]
[1732438022336,2.25860537,3402.4,3401.7,0.8083]
[1732438022544,0.38306806,3402.3,3401.7,0.8083]
[1732438022767,0.27145112,3402.2,3401.7,0.8083]
[1732438023447,0.11161694,3402.1,3401.7,0.8083]
[1732438023645,0.2714456,3402.0,3400.8,0.809]
[1732438023886,0.11161694,3402.1,3400.8,1.102]
[1732438024062,0.27145222,3402.0,3400.9,0.809]
[1732438024260,0.11161694,3402.0,3400.9,0.809]
[1732438024872,0.27146445,3401.9,3400.9,0.809]
[1732438025086,0.11161694,3402.0,3400.9,0.809]
[1732438025287,0.27146339,3401.9,3400.9,0.809]
[1732438025495,0.11161694,3401.9,3400.9,0.809]
[1732438025909,0.7798,3402.2,3400.9,1.102]
[1732438026198,0.27150901,3402.1,3401.0,0.809]
[1732438026502,0.27150901,3402.0,3401.1,0.809]
[1732438026961,0.38312595,3401.9,3401.1,0.809]
[1732438027162,0.27150901,3401.8,3401.1,0.809]
[1732438027377,5.25860537,3402.4,3401.1,0.809]
[1732438027581,0.11161694,3401.7,3401.1,0.809]
[1732438027776,5.25860537,3402.4,3401.1,0.809]
[1732438027986,0.11161694,3401.6,3401.1,0.809]
[1732438028171,5.25860537,3402.4,3401.1,0.809]
[1732438028370,0.11161694,3401.5,3401.1,0.809]
[1732438028987,0.11149808,3401.4,3401.1,0.809]
[1732438029191,0.7798,3401.9,3401.1,0.809]
[1732438029398,0.11144319,3401.3,3401.1,0.809]
[1732438029595,0.7798,3401.9,3401.1,0.809]
[1732438029793,0.11144319,3401.2,3401.1,0.809]
[1732438029957,0.7798,3401.9,3401.1,0.809]
[1732438030163,0.27154708,3401.8,3401.1,0.809]
[1732438030364,0.27154708,3401.7,3401.1,0.809]
[1732438030587,0.11010555,3401.6,3401.1,0.809]
[1732438031033,0.7798,3401.9,3401.1,0.809]
[1732438031326,0.11010326,3401.5,3401.1,0.809]
[1732438031841,0.11009639,3401.4,3401.1,0.809]
[1732438032340,0.7798,3401.9,3401.1,0.809]
[1732438032482,0.1100941,3401.3,3401.1,0.809]
[1732438032836,0.1100941,3401.2,3401.1,0.809]
[1732438033042,2.25860537,3401.2,3400.2,0.8281]
[1732438033324,2.36869947,3401.2,3400.2,0.8281]
[1732438033533,0.27142103,3401.1,3400.2,0.8281]
[1732438033697,2.25860537,3400.9,3400.2,0.8281]
[1732438034087,1.14299848,3400.8,3400.2,0.8281]
[1732438034387,0.8715941,3400.8,3400.2,0.8281]
[1732438035919,0.27100187,3400.7,3400.2,0.8281]
[1732438036213,0.10999332,3400.6,3400.2,0.8281]
[1732438036413,0.7615,3400.8,3400.2,0.8281]
[1732438036611,0.10999332,3400.5,3400.2,0.8281]
[1732438036835,0.7615,3400.8,3400.2,0.8281]
[1732438037005,0.10999332,3400.4,3400.2,0.8281]
[1732438037202,0.7615,3400.8,3400.2,0.8281]
[1732438037403,0.10999332,3400.3,3400.2,0.8281]
[1732438037601,0.7615,3400.8,3400.2,0.8281]
[1732438037803,0.10999332,3400.3,3400.2,0.8281]
[1732438038033,0.7615,3400.8,3400.2,0.8281]
[1732438038360,0.10999332,3400.3,3400.2,0.8281]
[1732438039551,0.7615,3400.8,3400.2,0.8281]
[1732438039753,0.10999332,3400.3,3400.2,0.8281]
[1732438040449,0.7615,3400.8,3400.2,0.8281]
[1732438040648,0.10999332,3400.3,3400.2,0.8281]
[1732438040856,0.7615,3400.8,3400.2,0.8281]
[1732438041059,0.10999332,3400.3,3400.2,0.8281]
[1732438041351,2.25860537,3400.6,3400.2,0.8281]
[1732438041929,0.10999332,3400.5,3400.2,0.8281]
[1732438042627,0.99379987,3400.3,3400.2,0.8281]
[1732438043031,1.10379319,3400.3,3400.2,0.8281]
[1732438045853,1.10379319,3400.3,3399.2,0.293]
[1732438045854,1.10379319,3400.3,3399.3,0.7842]
[1732438046048,1.10379319,3400.3,3399.4,0.7842]
[1732438046049,0.99379987,3400.1,3399.4,0.7842]
[1732438048713,3.0,3400.9,3399.5,0.7842]
[1732438048989,1.10334876,3400.8,3399.7,0.7842]
[1732438049147,1.10334876,3400.8,3399.8,0.8136073]
[1732438050076,0.99379987,3400.6,3399.8,0.7842]
[1732438050472,0.10954889,3400.5,3399.8,0.7842]
[1732438051003,0.99379987,3400.4,3399.8,0.7842]
[1732438051179,0.99379987,3400.2,3399.8,0.7842]
[1732438051812,0.99379987,3400.0,3399.8,0.7842]
[1732438052501,0.10963138,3399.9,3399.8,0.7842]
[1732438053107,2.26106438,3400.2,3399.5,0.7842]
[1732438053305,0.10963138,3399.9,3399.5,0.7842]
[1732438053510,2.26106438,3400.2,3399.5,0.7842]
[1732438054609,0.10953285,3400.1,3399.5,0.7842]
[1732438057879,2.26106438,3400.5,3399.5,0.7842]
[1732438058085,0.1093816,3400.0,3399.5,0.7842]
[1732438058419,2.26106438,3399.7,3398.9,0.784]
[1732438058991,0.10939306,3399.6,3398.9,0.784]
[1732438059509,0.10939306,3399.6,3399.0,0.02941736]
[1732438059719,0.10939306,3399.6,3398.9,0.784]
[1732438060374,0.10939306,3399.6,3399.0,0.02941736]
[1732438060579,0.10939306,3399.6,3399.1,0.8085]
[1732438070117,0.10939306,3399.6,3398.8,0.8085]
[1732438070319,0.7751,3399.5,3398.8,1.18174161]
[1732438070522,2.26106438,3399.3,3398.8,1.18174161]
[1732438071099,0.10932198,3399.2,3398.8,1.18174161]
[1732438071428,0.10932198,3399.1,3398.8,1.18174161]
[1732438071929,2.26106438,3399.3,3398.8,0.37324161]
[1732438072134,0.10932198,3399.0,3398.8,0.37324161]
[1732438072439,0.10932198,3398.9,3398.8,0.37324161]
[1732438072614,2.26106438,3399.3,3398.8,0.37324161]
[1732438072814,0.10932198,3398.9,3398.4,0.8085]
[1732438073131,2.26106438,3398.7,3398.4,0.8085]
[1732438073524,0.10920506,3398.6,3398.4,0.8085]
[1732438074115,0.10920506,3398.6,3397.5,0.293]
[1732438074436,2.26106438,3398.4,3397.6,0.16809226]
[1732438074803,2.25976238,3398.4,3397.6,0.16809226]
[1732438075129,0.10911563,3398.3,3397.6,0.16809226]
[1732438075330,0.10911563,3398.3,3397.4,0.8085]
[1732438077039,0.10911563,3398.3,3397.4,0.83792754]
[1732438077230,0.7751,3398.6,3397.4,0.83792754]
[1732438077541,0.10911333,3398.2,3397.5,0.41309275]
[1732438077743,0.7751,3398.6,3397.5,0.41309275]
[1732438078111,0.10911333,3398.5,3397.5,0.41309275]
[1732438079244,0.10911333,3398.5,3397.5,0.4425203]
[1732438080049,0.10911333,3398.5,3397.6,0.55]
[1732438080231,0.10911333,3398.5,3397.7,0.83042479]
[1732438080541,0.10911333,3398.5,3397.8,0.17935175]
[1732438082447,0.10911333,3398.5,3398.2,0.801]
[1732438082647,0.8086,3399.3,3398.2,0.83042136]
[1732438082858,0.10517645,3398.4,3398.2,0.83042136]
[1732438083149,0.8086,3399.3,3398.2,0.83042136]
[1732438083367,0.8086,3399.3,3398.3,0.55]
[1732438083512,0.10517645,3399.2,3398.4,0.83041929]
[1732438083854,0.10517645,3399.2,3398.4,0.801]
[1732438085919,0.10311645,3399.2,3398.4,0.801]
[1732438088725,0.10311645,3399.2,3398.0,1.094]
[1732438089940,0.7989,3399.1,3398.0,1.094]
[1732438090149,0.90412068,3399.1,3398.0,1.50634235]
[1732438090353,0.90412068,3399.1,3398.1,0.02942353]
[1732438090862,0.90412068,3399.1,3398.0,1.50634235]
[1732438091062,0.90412068,3399.1,3398.1,0.02942351]
[1732438091773,0.90412068,3399.1,3398.0,1.50634235]
[1732438092063,0.90412068,3399.1,3398.1,0.15063424]
[1732438093269,0.90412068,3399.1,3398.0,0.41234235]
[1732438099295,0.90412068,3399.1,3397.6,2.86]
[1732438099501,0.7989,3398.9,3397.6,2.86]
[1732438099694,0.7989,3398.9,3397.5,0.7501]
[1732438099897,0.7989,3398.9,3397.6,0.40725273]
[1732438100095,0.85655061,3398.8,3397.6,0.40725273]
[1732438100995,0.85655061,3398.8,3397.2,0.7891]
[1732438101197,0.7513,3398.6,3397.2,0.7891]
[1732438101562,0.85641697,3398.5,3397.2,0.7891]
[1732438101994,0.85641697,3398.5,3396.7,2.86]
[1732438102203,3.0,3398.4,3396.7,0.02943337]
[1732438102406,0.7513,3398.3,3396.7,0.02943337]
[1732438102706,0.85636627,3398.3,3396.7,0.02943337]
[1732438102882,0.85636627,3398.3,3396.5,0.02943338]
[1732438108887,0.85636627,3398.3,3396.4,1.11153484]
[1732438111514,0.85636627,3398.3,3397.1,0.293]
[1732438111818,2.26106438,3398.0,3396.4,0.293]
[1732438112028,2.26106438,3397.7,3395.8,0.0294413]
[1732438112235,0.7513,3397.6,3395.7,0.7891]
[1732438112378,0.7513,3397.5,3395.7,0.7891]
[1732438112580,0.85603436,3397.5,3395.7,0.7891]
[1732438113178,1.3013,3396.9,3394.5,0.7891]
[1732438113382,0.7513,3396.3,3394.0,0.02945427]
[1732438113989,0.7513,3396.1,3394.0,0.02945427]
[1732438114393,0.7513,3396.1,3393.9,1.0821]
[1732438114610,0.7513,3395.9,3394.0,0.02945887]
[1732438114782,0.7513,3395.9,3393.9,1.0821]
[1732438114982,0.7513,3395.9,3394.0,0.02945888]
[1732438115184,0.7513,3395.7,3394.0,0.02945888]
[1732438115427,0.7513,3395.7,3393.9,1.0821]
[1732438115624,0.7513,3395.7,3394.0,3.02945889]
[1732438115835,0.7513,3395.5,3394.1,0.41115589]
[1732438115989,0.7513,3395.5,3393.9,0.7891]
[1732438116187,0.7513,3395.5,3394.0,3.02945889]
[1732438116426,0.10366619,3395.4,3394.0,0.02945889]
[1732438116582,0.7513,3395.5,3394.1,0.55]
[1732438116787,0.7513,3395.5,3394.0,3.02945889]
[1732438116788,0.10366619,3395.3,3394.4,0.55]
[1732438117000,0.7513,3395.5,3394.5,0.02945376]
[1732438118314,0.7513,3395.5,3394.3,0.7891]
[1732438118510,0.7513,3395.5,3394.3,3.7891]
[1732438118925,0.7513,3395.5,3394.3,4.45401]
[1732438121432,0.7513,3395.5,3394.3,3.0]
[1732438122215,0.7513,3395.5,3394.2,2.86]
[1732438123514,0.8,3395.3,3394.2,2.86]
[1732438124110,0.8,3395.1,3394.2,2.86]
[1732438124759,0.8,3394.9,3394.2,2.86]
[1732438125260,0.10357153,3394.8,3394.2,2.86]
[1732438125860,0.10357153,3394.8,3394.2,2.857]
[1732438127766,0.8,3394.7,3394.2,2.857]
[1732438128323,0.90357153,3394.6,3393.6,0.1513763]
[1732438130544,0.8,3394.6,3393.6,0.1513763]
[1732438131428,0.8,3394.6,3393.6,0.9037763]
[1732438132235,0.8,3394.6,3393.6,1.1967763]
[1732438132436,0.8,3394.6,3393.7,0.87246203]
[1732438132741,0.8,3394.6,3393.8,0.17762383]
[1732438133045,3.0,3396.1,3393.8,0.17762383]
[1732438133046,0.8,3396.1,3394.2,0.843]
[1732438133250,0.09989433,3396.0,3394.3,0.02945557]
[1732438133440,0.09989433,3396.0,3394.2,0.293]
[1732438133441,0.8,3395.9,3394.2,0.293]
[1732438133635,0.8,3395.9,3394.0,0.293]
[1732438133835,0.0999987,3395.8,3393.6,0.1513763]
[1732438134073,0.8,3395.7,3393.7,0.60508346]
[1732438134377,0.8,3395.5,3393.7,0.60508346]
[1732438134577,0.8,3395.3,3393.7,0.60508346]
[1732438134935,0.8,3395.2,3393.7,0.60508346]
[1732438135137,0.8,3395.1,3393.7,0.60508346]
[1732438135336,0.8,3395.1,3393.6,0.1513763]
[1732438135747,0.8999987,3395.0,3393.6,0.1513763]
[1732438135964,0.8999987,3395.0,3393.7,0.293]
[1732438137869,0.8999987,3395.0,3393.6,0.1513763]
[1732438138380,0.8999987,3395.0,3393.6,0.4443763]
[1732438138871,0.8999987,3395.0,3393.6,0.78881393]
[1732438139039,0.8,3395.0,3393.6,0.78881393]
[1732438145457,0.8,3395.0,3393.6,0.4443763]
[1732438145662,0.09987113,3394.9,3393.6,0.1513763]
[1732438145891,0.7615,3394.8,3393.6,0.1513763]
[1732438146191,0.7615,3394.6,3393.6,0.1513763]
[1732438146883,2.26106438,3394.6,3393.6,0.1513763]
[1732438147068,0.7615,3394.4,3393.6,0.1513763]
[1732438147263,0.09975744,3394.3,3393.6,0.1513763]
[1732438147463,0.7615,3394.2,3393.6,0.1513763]
[1732438147669,0.09975744,3394.1,3393.6,0.1513763]
[1732438148002,0.7615,3394.0,3393.6,0.1513763]
[1732438148213,0.86119479,3394.0,3393.6,0.1513763]
[1732438150287,0.09969479,3394.0,3393.7,0.293]
[1732438150489,0.7615,3394.3,3393.7,0.293]
[1732438150699,0.7615,3395.1,3393.9,0.293]
[1732438150900,0.09975048,3395.0,3393.9,0.293]
[1732438151266,0.7615,3395.0,3393.9,0.293]
[1732438151762,0.7615,3395.0,3393.7,0.293]
[1732438152092,0.86125048,3394.9,3393.7,0.293]
[1732438153896,0.86125048,3394.9,3393.6,0.1513763]
[1732438154899,0.86125048,3394.9,3393.7,0.293]
[1732438157403,0.7615,3394.9,3393.7,0.32246369]
[1732438157597,0.09975048,3394.8,3393.7,0.293]
[1732438158625,0.09975048,3394.8,3393.9,0.293]
[1732438158826,0.09975048,3394.8,3393.6,0.4443763]
[1732438159006,0.8114,3394.7,3393.6,0.4443763]
[1732438159201,0.91112031,3394.7,3393.6,0.4443763]
[1732438159403,0.8114,3394.7,3393.6,0.1513763]
[1732438159728,0.7698,3394.5,3393.6,0.1513763]
[1732438160430,0.7698,3394.3,3393.6,0.1513763]
[1732438161126,0.7698,3394.1,3393.6,0.1513763]
[1732438162199,0.09972031,3394.0,3393.6,0.1513763]
[1732438162402,0.7698,3394.1,3393.6,0.1513763]
[1732438163035,0.09972031,3394.0,3393.6,0.1513763]
[1732438163910,0.7698,3394.1,3393.6,0.1513763]
[1732438164330,0.09972031,3394.0,3393.6,0.1513763]
[1732438164633,0.09972031,3394.0,3393.7,0.293]
[1732438164844,0.7698,3394.1,3393.7,0.293]
[1732438164995,0.7698,3394.1,3393.6,0.1513763]
[1732438165858,0.09972031,3394.0,3393.6,0.1513763]
[1732438166015,0.7698,3394.1,3393.6,0.1513763]
[1732438167311,0.09972031,3394.0,3393.6,0.1513763]
[1732438167619,0.7698,3394.1,3393.6,0.1513763]
[1732438168314,0.09972031,3394.0,3393.6,0.1513763]
[1732438168557,0.7698,3394.1,3393.6,0.1513763]
[1732438169414,0.09968551,3394.0,3393.6,0.1513763]
[1732438169655,0.7698,3394.1,3393.6,0.1513763]
[1732438171049,0.09968551,3394.0,3393.6,0.1513763]
[1732438171449,0.7698,3394.1,3393.6,0.1513763]
[1732438171752,0.09968551,3394.0,3393.6,0.1513763]
[1732438172254,0.7698,3394.1,3393.6,0.1513763]
[1732438174079,0.09968551,3394.0,3393.6,0.1513763]
[1732438174279,0.7698,3394.1,3393.6,0.1513763]
[1732438174939,0.09963678,3394.0,3393.6,0.1513763]
[1732438175141,0.7659,3393.9,3393.6,0.1513763]
[1732438175553,0.09963678,3393.8,3393.0,3.68468436]
[1732438175775,0.09963678,3393.8,3393.3,0.3293]
[1732438175986,0.7659,3393.9,3393.3,0.3293]
[1732438176556,0.7659,3393.9,3393.1,0.293]
[1732438177116,0.7659,3393.9,3393.0,0.32246589]
[1732438177252,0.7659,3393.9,3393.0,3.32246589]
[1732438177453,0.7659,3393.9,3393.1,0.75972659]
[1732438177793,0.7659,3393.9,3393.1,0.293]
[1732438178364,0.7659,3393.9,3393.0,3.32246589]
[1732438178549,0.7659,3393.9,3393.0,0.293]
[1732438178776,0.7659,3393.9,3393.0,3.293]
[1732438178978,0.7659,3393.9,3393.1,0.41172673]
[1732438185293,0.09957412,3393.8,3393.1,0.41172673]
[1732438185498,0.7536,3393.7,3393.1,0.41172673]
[1732438194727,0.09953236,3393.6,3392.8,3.0]
[1732438194923,0.7536,3393.7,3392.8,3.0]
[1732438195122,0.7536,3393.7,3392.6,0.293]
[1732438196345,0.7536,3393.7,3392.6,0.46293706]
[1732438197751,0.7536,3393.7,3392.9,1.1199]
[1732438198254,0.7536,3393.7,3392.9,0.293]
[1732438198759,0.7536,3393.7,3392.9,0.32246996]
[1732438199315,0.7536,3393.7,3392.9,0.293]
[1732438199567,0.7649,3393.5,3392.5,2.86]
[1732438199853,0.7732,3393.3,3391.2,0.02947057]
[1732438200058,0.7732,3393.1,3391.2,0.02947057]
[1732438200220,0.30518333,3393.0,3391.2,0.02947057]
[1732438200419,0.7732,3392.8,3391.2,0.32247057]
[1732438200740,0.09943256,3392.7,3391.2,0.32247057]
[1732438200943,0.7732,3392.6,3391.2,0.32247057]
[1732438201115,0.87263256,3392.6,3391.8,0.575]
[1732438201742,0.87263256,3392.6,3391.9,0.3575]
[1732438202355,0.87263256,3392.6,3391.8,0.575]
[1732438202564,0.87263256,3392.6,3391.9,0.02947925]
[1732438202728,0.7732,3392.6,3391.9,0.32247925]
[1732438203333,0.7732,3392.6,3391.8,0.575]
[1732438203536,0.09897054,3392.5,3391.8,0.575]
[1732438203732,0.09897054,3392.5,3391.9,0.02947807]
[1732438204127,0.09897054,3392.5,3391.9,0.02947584]
[1732438205256,0.09897054,3392.5,3391.8,0.60447729]
[1732438205423,0.7732,3392.6,3391.8,0.60447729]
[1732438205424,0.7732,3392.6,3392.0,0.293]
[1732438205623,0.7732,3392.6,3392.0,0.32247728]
[1732438206058,0.7732,3392.6,3392.0,0.293]
[1732438206725,0.7732,3392.6,3391.8,0.575]
[1732438206925,0.7729252,3392.6,3391.8,0.575]
[1732438207393,0.09897054,3392.5,3391.8,0.868]
[1732438207577,0.03407648,3393.3,3391.8,0.868]
[1732438207893,0.09897054,3392.4,3391.8,0.868]
[1732438208099,0.03407648,3393.1,3391.8,0.868]
[1732438208458,0.36915294,3393.0,3391.8,0.575]
[1732438208656,0.03407648,3392.9,3391.8,0.575]
[1732438208984,0.09894267,3392.8,3391.8,0.575]
[1732438209188,0.03407648,3392.7,3391.8,0.575]
[1732438209368,0.1330145,3392.7,3391.8,0.575]
[1732438209908,0.7732,3392.6,3391.8,0.575]
[1732438210204,0.7732,3392.4,3391.8,0.575]
[1732438210555,0.7732,3392.4,3391.6,2.86]
[1732438210754,0.7732,3392.4,3390.7,0.32247926]
[1732438210755,0.90621441,3392.3,3390.7,0.32247926]
[1732438211683,0.90621441,3392.3,3390.7,0.02947926]
[1732438211984,0.90621441,3392.3,3390.6,0.293]
[1732438212191,0.7732,3392.3,3390.9,0.293]
[1732438212373,0.7732,3392.3,3391.2,0.293]
[1732438212374,0.09883814,3392.2,3391.2,0.293]
[1732438212575,0.09883814,3392.2,3391.3,0.0294797]
[1732438213008,0.7732,3392.6,3391.4,0.7816]
[1732438213312,0.09883814,3392.1,3391.5,0.41058577]
[1732438213532,0.7732,3393.2,3391.9,1.0746]
[1732438213663,0.7732,3393.2,3392.2,0.843]
[1732438213858,0.7732,3393.2,3392.3,0.02947228]
[1732438214095,0.7732,3393.2,3392.2,0.843]
[1732438214298,0.7732,3393.2,3392.2,1.00840723]
[1732438214469,0.7732,3393.2,3392.2,0.45840723]
[1732438214671,0.7732,3393.2,3392.0,0.02947227]
[1732438214672,0.03407639,3393.1,3392.0,0.293]
[1732438215314,0.7732,3393.2,3392.0,0.293]
[1732438215534,0.7732,3393.0,3391.7,0.293]
[1732438215807,0.1,3394.4,3391.7,0.293]
[1732438215808,0.80727639,3392.9,3391.7,0.293]
[1732438216013,0.90611453,3392.9,3391.6,0.293]
[1732438216913,0.90611453,3392.9,3391.6,0.70340772]
[1732438217526,0.90611453,3392.9,3391.4,0.293]
[1732438225240,0.7682,3392.7,3391.3,3.0]
[1732438225535,0.7682,3392.7,3391.0,0.7816]
[1732438225536,0.55,3392.4,3391.0,0.293]
[1732438225736,0.80227639,3392.3,3391.0,0.293]
[1732438225911,0.90118419,3392.3,3391.0,0.293]
[1732438226130,0.55,3392.2,3391.0,0.293]
[1732438226454,0.80227639,3392.1,3390.7,0.293]
[1732438226765,0.90118419,3392.1,3390.7,0.293]
[1732438227057,0.90118419,3392.1,3390.7,3.293]
[1732438227260,0.8671078,3392.1,3390.7,0.94073649]
[1732438227619,0.8671078,3392.1,3390.9,0.293]
[1732438227828,0.7682,3392.1,3391.0,0.02948157]
[1732438228248,0.7682,3392.1,3391.2,0.293]
[1732438228445,0.7682,3392.1,3391.3,0.02948023]
[1732438231140,0.03407639,3393.4,3391.3,0.02948023]
[1732438231141,0.7682,3393.3,3391.3,0.02948023]
[1732438231336,0.09875917,3393.2,3392.0,0.293]
[1732438231566,0.7682,3393.3,3392.3,0.7884]
[1732438231840,0.7682,3393.3,3392.3,1.11087211]
[1732438232878,0.7682,3393.3,3392.4,0.02946994]
[1732438233802,0.7682,3393.3,3392.6,0.293]
[1732438233955,0.7682,3394.2,3392.8,0.293]
[1732438234503,0.7682,3394.0,3392.8,0.293]
[1732438234852,0.7682,3394.0,3392.7,0.02946848]
[1732438235065,0.09875917,3393.9,3392.7,0.02946848]
[1732438235393,0.7682,3393.8,3392.7,0.02946848]
[1732438235957,0.09875917,3393.7,3392.7,0.02946848]
[1732438236158,0.09875917,3393.7,3392.7,0.7884]
[1732438236479,0.7682,3394.9,3392.9,0.55]
[1732438236677,0.09875917,3393.6,3393.0,0.02946331]
[1732438236857,0.7682,3394.0,3393.0,0.02946331]
[1732438238631,0.7682,3395.2,3393.1,0.7884]
[1732438238902,0.03407639,3395.3,3393.1,0.7884]
[1732438238903,0.09875917,3393.9,3393.2,0.02946184]
[1732438239078,0.7682,3394.0,3393.2,0.02946184]
[1732438239282,0.0956725,3393.8,3393.1,0.02946193]
[1732438239581,0.7682,3394.0,3393.1,0.02946193]
[1732438240005,0.7848,3394.9,3392.6,0.57946371]